[Event "*** Qualifier 4: Titled Tuesday 3|2 Blitz"]
[Site "Chess.com"]
[Date "2017.04.25"]
[Round "2"]
[White "Goala"]
[Black "Aygehovit1992"]
[Result "1-0"]
[WhiteElo "2358"]
[BlackElo "2466"]
[TimeControl "180+2"]
[EndTime "13:23:09 PDT"]
[Termination "Goala won by checkmate"]

1. d4 {[%clk 0:03:02]} 1... Nf6 {[%clk 0:02:56]} 2. c4 {[%clk 0:03:01.6]} 2...
c6 {[%clk 0:02:57.2]} 3. Nc3 {[%clk 0:03:01.9]} 3... d5 {[%clk 0:02:58.8]} 4. e3
{[%clk 0:03:03.1]} 4... g6 {[%clk 0:02:59.3]} 5. Nf3 {[%clk 0:03:03.3]} 5... Bg7
{[%clk 0:03:00.6]} 6. Be2 {[%clk 0:03:03.9]} 6... O-O {[%clk 0:03:02.3]} 7. O-O
{[%clk 0:03:05.6]} 7... a6 {[%clk 0:03:00.7]} 8. h3 {[%clk 0:03:05]} 8... b5
{[%clk 0:02:59]} 9. b3 {[%clk 0:03:04.4]} 9... Nbd7 {[%clk 0:02:57.3]} 10. Bb2
{[%clk 0:03:02.2]} 10... bxc4 {[%clk 0:02:54.7]} 11. bxc4 {[%clk 0:03:03]} 11...
Rb8 {[%clk 0:02:56.4]} 12. Qc2 {[%clk 0:02:55.2]} 12... e6 {[%clk 0:02:43.5]}
13. Rfc1 {[%clk 0:02:46.9]} 13... a5 {[%clk 0:02:42.9]} 14. cxd5 {[%clk
0:02:36.2]} 14... cxd5 {[%clk 0:02:41.9]} 15. Ba3 {[%clk 0:02:36.6]} 15... Re8
{[%clk 0:02:42.3]} 16. Nb5 {[%clk 0:02:26.4]} 16... Bf8 {[%clk 0:02:29]} 17. Bd6
{[%clk 0:01:47.5]} 17... Bxd6 {[%clk 0:01:39.8]} 18. Nxd6 {[%clk 0:01:47.1]}
18... Rf8 {[%clk 0:01:41.2]} 19. Rab1 {[%clk 0:01:15.5]} 19... Rxb1 {[%clk
0:01:39]} 20. Rxb1 {[%clk 0:01:17.4]} 20... Ne4 {[%clk 0:01:07.3]} 21. Nxe4
{[%clk 0:01:15.5]} 21... dxe4 {[%clk 0:01:09.2]} 22. Qxe4 {[%clk 0:01:17.1]}
22... Nf6 {[%clk 0:01:10.9]} 23. Qc6 {[%clk 0:01:10.1]} 23... Bd7 {[%clk
0:01:09.9]} 24. Qb6 {[%clk 0:01:02.6]} 24... Qxb6 {[%clk 0:01:06.8]} 25. Rxb6
{[%clk 0:01:02.9]} 25... Rc8 {[%clk 0:01:08.4]} 26. Ne5 {[%clk 0:00:45.9]} 26...
Rc1+ {[%clk 0:01:08]} 27. Kh2 {[%clk 0:00:46.7]} 27... Rc2 {[%clk 0:01:09.3]}
28. Bc4 {[%clk 0:00:40.6]} 28... Rxf2 {[%clk 0:01:08.3]} 29. Rb8+ {[%clk
0:00:33]} 29... Kg7 {[%clk 0:01:08.8]} 30. Rb7 {[%clk 0:00:34.4]} 30... Be8
{[%clk 0:00:55.6]} 31. Bxe6 {[%clk 0:00:31.9]} 31... Ne4 {[%clk 0:00:53.6]} 32.
Bd5 {[%clk 0:00:28]} 32... Nc3 {[%clk 0:00:43]} 33. Bc4 {[%clk 0:00:17.6]} 33...
Nd1 {[%clk 0:00:44]} 34. Kg1 {[%clk 0:00:10.4]} 34... Rf6 {[%clk 0:00:35.3]} 35.
Re7 {[%clk 0:00:08.6]} 35... Ba4 {[%clk 0:00:32.1]} 36. Rxf7+ {[%clk 0:00:08.7]}
36... Rxf7 {[%clk 0:00:32.8]} 37. Nxf7 {[%clk 0:00:10.6]} 37... Nxe3 {[%clk
0:00:33.6]} 38. Nd6 {[%clk 0:00:09.4]} 38... Bc6 {[%clk 0:00:28.7]} 39. Kf2
{[%clk 0:00:08.7]} 39... Nxc4 {[%clk 0:00:21.1]} 40. Nxc4 {[%clk 0:00:09.2]}
40... a4 {[%clk 0:00:22.5]} 41. a3 {[%clk 0:00:08.4]} 41... Kf6 {[%clk
0:00:23.3]} 42. g3 {[%clk 0:00:08.1]} 42... Ke6 {[%clk 0:00:22.5]} 43. Ke3
{[%clk 0:00:08]} 43... Bg2 {[%clk 0:00:22]} 44. h4 {[%clk 0:00:08]} 44... Kf5
{[%clk 0:00:22.5]} 45. Nb6 {[%clk 0:00:07.1]} 45... Bc6 {[%clk 0:00:19]} 46. d5
{[%clk 0:00:07.3]} 46... Be8 {[%clk 0:00:19.3]} 47. Kd4 {[%clk 0:00:07.1]} 47...
Kg4 {[%clk 0:00:20.5]} 48. d6 {[%clk 0:00:08.4]} 48... Kxg3 {[%clk 0:00:21.9]}
49. d7 {[%clk 0:00:08.8]} 49... Bxd7 {[%clk 0:00:23.1]} 50. Nxd7 {[%clk
0:00:10.7]} 50... Kxh4 {[%clk 0:00:24.8]} 51. Nc5 {[%clk 0:00:12.1]} 51... g5
{[%clk 0:00:25.1]} 52. Nxa4 {[%clk 0:00:14]} 52... g4 {[%clk 0:00:26.6]} 53. Nc3
{[%clk 0:00:15.4]} 53... g3 {[%clk 0:00:23]} 54. a4 {[%clk 0:00:16.3]} 54... Kg4
{[%clk 0:00:23.8]} 55. a5 {[%clk 0:00:16.1]} 55... h5 {[%clk 0:00:23.5]} 56. a6
{[%clk 0:00:16.7]} 56... h4 {[%clk 0:00:25.1]} 57. a7 {[%clk 0:00:17.9]} 57...
g2 {[%clk 0:00:25.5]} 58. Ne2 {[%clk 0:00:17.5]} 58... Kf3 {[%clk 0:00:13.7]}
59. a8=Q+ {[%clk 0:00:15]} 59... Kf2 {[%clk 0:00:15.1]} 60. Qe4 {[%clk
0:00:13.9]} 60... h3 {[%clk 0:00:15.4]} 61. Qe3+ {[%clk 0:00:12.5]} 61... Kf1
{[%clk 0:00:13.2]} 62. Ng3# {[%clk 0:00:11.7]} 1-0

[Event "*** Qualifier 4: Titled Tuesday 3|2 Blitz"]
[Site "Chess.com"]
[Date "2017.04.25"]
[Round "2"]
[White "daro94"]
[Black "L3on4rdo"]
[Result "1-0"]
[WhiteElo "2727"]
[BlackElo "2379"]
[TimeControl "180+2"]
[EndTime "13:23:36 PDT"]
[Termination "daro94 won by resignation"]

1. e4 {[%clk 0:01:44.5]} 1... e6 {[%clk 0:02:59.6]} 2. Nf3 {[%clk 0:01:46]} 2...
d5 {[%clk 0:03:00.1]} 3. Nc3 {[%clk 0:01:47.9]} 3... d4 {[%clk 0:02:58.7]} 4.
Ne2 {[%clk 0:01:49.1]} 4... c5 {[%clk 0:03:00.3]} 5. Ng3 {[%clk 0:01:50.8]} 5...
Nc6 {[%clk 0:03:01.1]} 6. Bb5 {[%clk 0:01:52.2]} 6... Ne7 {[%clk 0:02:57.4]} 7.
O-O {[%clk 0:01:53.2]} 7... a6 {[%clk 0:02:55.6]} 8. Bxc6+ {[%clk 0:01:54.8]}
8... Nxc6 {[%clk 0:02:56.4]} 9. d3 {[%clk 0:01:56.7]} 9... e5 {[%clk 0:02:56.3]}
10. Bg5 {[%clk 0:01:56.3]} 10... f6 {[%clk 0:02:29]} 11. Bd2 {[%clk 0:01:44]}
11... Be6 {[%clk 0:02:29.8]} 12. Ne1 {[%clk 0:01:33.2]} 12... Bd6 {[%clk
0:02:21.6]} 13. f4 {[%clk 0:01:34.3]} 13... exf4 {[%clk 0:02:21.8]} 14. Bxf4
{[%clk 0:01:36.2]} 14... Bxf4 {[%clk 0:02:21.9]} 15. Rxf4 {[%clk 0:01:38.1]}
15... O-O {[%clk 0:02:06.2]} 16. Qh5 {[%clk 0:01:32.3]} 16... Qe7 {[%clk
0:02:05]} 17. Nf5 {[%clk 0:01:27]} 17... Bxf5 {[%clk 0:01:44.5]} 18. Qxf5 {[%clk
0:01:28.9]} 18... Ne5 {[%clk 0:01:30.4]} 19. Qh3 {[%clk 0:01:21.6]} 19... c4
{[%clk 0:01:27]} 20. b3 {[%clk 0:00:56.3]} 20... cxb3 {[%clk 0:01:23.7]} 21.
axb3 {[%clk 0:00:55.7]} 21... Rac8 {[%clk 0:01:19]} 22. Qg3 {[%clk 0:00:47.9]}
22... Qd6 {[%clk 0:01:05.5]} 23. Rf5 {[%clk 0:00:47.5]} 23... Rfd8 {[%clk
0:01:02.1]} 24. Ra5 {[%clk 0:00:36.5]} 24... Nc6 {[%clk 0:00:59.8]} 25. Qxd6
{[%clk 0:00:30.5]} 25... Rxd6 {[%clk 0:01:01.7]} 26. Ra4 {[%clk 0:00:30.1]}
26... Ne5 {[%clk 0:00:55.2]} 27. h3 {[%clk 0:00:21.5]} 27... Kf7 {[%clk
0:00:51.6]} 28. Kf1 {[%clk 0:00:20.9]} 28... Ke6 {[%clk 0:00:51.5]} 29. Ke2
{[%clk 0:00:21.5]} 29... b5 {[%clk 0:00:35.5]} 30. Ra1 {[%clk 0:00:20.3]} 30...
Rdc6 {[%clk 0:00:36.5]} 31. Kd2 {[%clk 0:00:20.1]} 31... g6 {[%clk 0:00:26.8]}
32. Rf4 {[%clk 0:00:20.5]} 32... R8c7 {[%clk 0:00:21.1]} 33. Ra2 {[%clk
0:00:21.7]} 33... Nd7 {[%clk 0:00:21.8]} 34. Nf3 {[%clk 0:00:20.8]} 34... Rd6
{[%clk 0:00:20.6]} 35. h4 {[%clk 0:00:19]} 35... Ne5 {[%clk 0:00:17]} 36. g4
{[%clk 0:00:15]} 36... Nxf3+ {[%clk 0:00:11.8]} 37. Rxf3 {[%clk 0:00:16.9]}
37... Rc5 {[%clk 0:00:13.2]} 38. Rf1 {[%clk 0:00:16.8]} 38... h5 {[%clk
0:00:13.9]} 39. Rg1 {[%clk 0:00:16.2]} 39... hxg4 {[%clk 0:00:14.6]} 40. Rxg4
{[%clk 0:00:18.1]} 40... Rh5 {[%clk 0:00:13.2]} 41. Rxg6 {[%clk 0:00:16]} 41...
Rxh4 {[%clk 0:00:14.6]} 42. Rg2 {[%clk 0:00:14.4]} 42... Ke5 {[%clk 0:00:14.1]}
43. Rf2 {[%clk 0:00:15.1]} 43... Rf4 {[%clk 0:00:14.6]} 44. Rh2 {[%clk
0:00:15.4]} 44... f5 {[%clk 0:00:14.6]} 45. exf5 {[%clk 0:00:16.4]} 45... Rf6
{[%clk 0:00:11.3]} 46. Re2+ {[%clk 0:00:16.2]} 46... Kd5 {[%clk 0:00:11.6]} 47.
Re6 {[%clk 0:00:15.5]} 47... R4xf5 {[%clk 0:00:12.4]} 48. Rexa6 {[%clk
0:00:15.6]} 48... Rf2+ {[%clk 0:00:13.4]} 49. Kc1 {[%clk 0:00:16.6]} 49... Rxa6
{[%clk 0:00:08.5]} 50. Rxa6 {[%clk 0:00:02.8]} 50... Kc5 {[%clk 0:00:09.8]} 51.
Kb2 {[%clk 0:00:03.3]} 51... Kb4 {[%clk 0:00:11.7]} 52. Ra1 {[%clk 0:00:05.2]}
52... Rf4 {[%clk 0:00:09.9]} 53. Ra8 {[%clk 0:00:06.8]} 53... Rh4 {[%clk
0:00:10.9]} 54. Rd8 {[%clk 0:00:08.5]} 54... Rg4 {[%clk 0:00:12]} 55. Rd7 {[%clk
0:00:10.1]} 55... Rh4 {[%clk 0:00:13.1]} 56. Rd8 {[%clk 0:00:11.7]} 56... Rg4
{[%clk 0:00:14.3]} 57. Rh8 {[%clk 0:00:13.2]} 57... Kc5 {[%clk 0:00:14.4]} 58.
Rh5+ {[%clk 0:00:14.3]} 58... Kb4 {[%clk 0:00:13.3]} 59. Rd5 {[%clk 0:00:15.4]}
59... Rh4 {[%clk 0:00:13.7]} 60. Rxd4+ {[%clk 0:00:14.6]} 60... Rxd4 {[%clk
0:00:14.5]} 61. c3+ {[%clk 0:00:16.2]} 61... Kc5 {[%clk 0:00:16]} 62. cxd4+
{[%clk 0:00:17.9]} 62... Kxd4 {[%clk 0:00:17.3]} 63. Kc2 {[%clk 0:00:19.5]}
63... Kc5 {[%clk 0:00:14.6]} 64. Kc3 {[%clk 0:00:20.6]} 64... b4+ {[%clk
0:00:15.3]} 65. Kc2 {[%clk 0:00:20]} 65... Kd5 {[%clk 0:00:16]} 66. Kd1 {[%clk
0:00:21.5]} 66... Ke5 {[%clk 0:00:06.6]} 67. Ke2 {[%clk 0:00:22.1]} 67... Kf4
{[%clk 0:00:07.1]} 68. Kf2 {[%clk 0:00:23.2]} 68... Ke5 {[%clk 0:00:08.1]} 69.
Ke3 {[%clk 0:00:24.6]} 69... Kd5 {[%clk 0:00:09.5]} 70. d4 {[%clk 0:00:26.2]}
1-0

[Event "*** Qualifier 4: Titled Tuesday 3|2 Blitz"]
[Site "Chess.com"]
[Date "2017.04.25"]
[Round "2"]
[White "plouarzel"]
[Black "jcibarra"]
[Result "0-1"]
[WhiteElo "2434"]
[BlackElo "2678"]
[TimeControl "180+2"]
[EndTime "13:23:41 PDT"]
[Termination "jcibarra won by resignation"]

1. e4 {[%clk 0:03:02]} 1... e5 {[%clk 0:02:59.1]} 2. f4 {[%clk 0:03:02.2]} 2...
d5 {[%clk 0:02:59.6]} 3. exd5 {[%clk 0:03:02]} 3... exf4 {[%clk 0:03:01]} 4. Nf3
{[%clk 0:03:02.5]} 4... Nf6 {[%clk 0:03:00.7]} 5. Bc4 {[%clk 0:03:03.9]} 5...
Nxd5 {[%clk 0:03:00.5]} 6. Bxd5 {[%clk 0:03:05.8]} 6... Qxd5 {[%clk 0:03:00.7]}
7. Nc3 {[%clk 0:03:07.6]} 7... Qf5 {[%clk 0:02:55.1]} 8. d4 {[%clk 0:03:01.9]}
8... Bd6 {[%clk 0:02:50.1]} 9. Qe2+ {[%clk 0:03:03]} 9... Kd8 {[%clk 0:02:32]}
10. O-O {[%clk 0:03:03.3]} 10... Re8 {[%clk 0:02:31.1]} 11. Qb5 {[%clk
0:02:54.2]} 11... a6 {[%clk 0:02:18.4]} 12. Qb3 {[%clk 0:02:53.1]} 12... Nc6
{[%clk 0:02:15.9]} 13. Bd2 {[%clk 0:02:31.7]} 13... g5 {[%clk 0:02:15.3]} 14. d5
{[%clk 0:02:22.5]} 14... Ne5 {[%clk 0:02:00.1]} 15. Nxe5 {[%clk 0:02:12.6]}
15... Rxe5 {[%clk 0:01:57.2]} 16. g3 {[%clk 0:02:10.9]} 16... f3 {[%clk
0:01:47.8]} 17. Nd1 {[%clk 0:02:01]} 17... Bc5+ {[%clk 0:01:38.7]} 18. Nf2
{[%clk 0:01:59.3]} 18... Re2 {[%clk 0:01:29.4]} 19. Qc3 {[%clk 0:01:34.1]} 19...
Bb6 {[%clk 0:00:58.9]} 20. Rad1 {[%clk 0:01:00]} 20... Bd7 {[%clk 0:00:55.4]}
21. Qh8+ {[%clk 0:00:33.9]} 21... Be8 {[%clk 0:00:43.5]} 22. Qg7 {[%clk
0:00:32.4]} 22... Rxd2 {[%clk 0:00:24.3]} 23. Rxd2 {[%clk 0:00:31.4]} 23... Qh3
{[%clk 0:00:25.1]} 24. Qf6+ {[%clk 0:00:31.2]} 24... Kc8 {[%clk 0:00:26]} 25.
Qxf3 {[%clk 0:00:31.6]} 25... f5 {[%clk 0:00:19.8]} 26. Qg2 {[%clk 0:00:21.2]}
26... Qh6 {[%clk 0:00:19.5]} 27. Kh1 {[%clk 0:00:20.8]} 27... Kb8 {[%clk
0:00:16.3]} 28. Nd3 {[%clk 0:00:20.3]} 28... Qf6 {[%clk 0:00:13.2]} 29. c4
{[%clk 0:00:20.5]} 29... Bd4 {[%clk 0:00:14]} 30. Qf3 {[%clk 0:00:17.7]} 30...
Bg6 {[%clk 0:00:14.1]} 31. Re2 {[%clk 0:00:13.9]} 31... Ka7 {[%clk 0:00:13]} 32.
Re6 {[%clk 0:00:15.4]} 32... Qf8 {[%clk 0:00:14.7]} 33. Ne5 {[%clk 0:00:14.8]}
33... Qc5 {[%clk 0:00:07.3]} 34. Nxg6 {[%clk 0:00:14.9]} 34... hxg6 {[%clk
0:00:09.2]} 35. Rxg6 {[%clk 0:00:16.3]} 35... Qxc4 {[%clk 0:00:09.4]} 36. Rxg5
{[%clk 0:00:16.2]} 36... Re8 {[%clk 0:00:09.6]} 37. b3 {[%clk 0:00:13.7]} 37...
Qc2 {[%clk 0:00:09.9]} 38. Rxf5 {[%clk 0:00:13.9]} 38... Re2 {[%clk 0:00:11.4]}
39. Rh5 {[%clk 0:00:14.5]} 39... Qxa2 {[%clk 0:00:10.9]} 40. Rh4 {[%clk
0:00:15.3]} 40... Bb6 {[%clk 0:00:12]} 41. d6 {[%clk 0:00:15.8]} 41... Re3
{[%clk 0:00:08.5]} 42. Qd5 {[%clk 0:00:12.5]} 42... c6 {[%clk 0:00:08.3]} 43.
Qg2 {[%clk 0:00:12.8]} 43... Re2 {[%clk 0:00:08.6]} 44. Qf3 {[%clk 0:00:13.8]}
44... Re3 {[%clk 0:00:09.9]} 45. Qf7 {[%clk 0:00:13.1]} 45... Qc2 {[%clk
0:00:09.3]} 46. Qf5 {[%clk 0:00:12]} 46... Qe2 {[%clk 0:00:07.8]} 47. d7 {[%clk
0:00:12.5]} 47... Rd3 {[%clk 0:00:08.9]} 48. Rhf4 {[%clk 0:00:09.2]} 48... Rd2
{[%clk 0:00:09.3]} 49. Qh3 {[%clk 0:00:09.4]} 49... Qd3 {[%clk 0:00:08.8]} 50.
Rf7 {[%clk 0:00:08.9]} 50... Qd5+ {[%clk 0:00:09.8]} 51. R7f3 {[%clk 0:00:08.7]}
51... Rd1 {[%clk 0:00:10.8]} 52. Qg2 {[%clk 0:00:07.4]} 52... Rd2 {[%clk
0:00:12.1]} 53. Qh3 {[%clk 0:00:07.2]} 53... a5 {[%clk 0:00:09.7]} 54. d8=Q
{[%clk 0:00:07.4]} 54... Qxd8 {[%clk 0:00:10.3]} 55. Qf5 {[%clk 0:00:08.9]}
55... Qd4 {[%clk 0:00:10.5]} 56. Qf4 {[%clk 0:00:09.2]} 56... Qb2 {[%clk
0:00:11.3]} 57. g4 {[%clk 0:00:09.4]} 57... Rd4 {[%clk 0:00:09.3]} 58. Qg3
{[%clk 0:00:09.6]} 58... Rd2 {[%clk 0:00:05.4]} 59. g5 {[%clk 0:00:10.6]} 59...
Qg7 {[%clk 0:00:05.2]} 60. g6 {[%clk 0:00:11.7]} 60... Rd6 {[%clk 0:00:06.9]}
61. Rf6 {[%clk 0:00:12.4]} 61... Rxf6 {[%clk 0:00:07.4]} 62. Ra1 {[%clk
0:00:12.7]} 62... Rxg6 {[%clk 0:00:08.2]} 63. Qe1 {[%clk 0:00:14.6]} 63... Rg1+
{[%clk 0:00:08.4]} 64. Qxg1 {[%clk 0:00:15.4]} 64... Bxg1 {[%clk 0:00:10.3]} 65.
Rxg1 {[%clk 0:00:16.7]} 65... Qd4 {[%clk 0:00:12]} 0-1

[Event "*** Qualifier 4: Titled Tuesday 3|2 Blitz"]
[Site "Chess.com"]
[Date "2017.04.25"]
[Round "2"]
[White "sergiochess83"]
[Black "wnstop"]
[Result "1-0"]
[WhiteElo "2719"]
[BlackElo "2469"]
[TimeControl "180+2"]
[EndTime "13:23:50 PDT"]
[Termination "sergiochess83 won by resignation"]

1. e4 {[%clk 0:03:02]} 1... c5 {[%clk 0:03:00.7]} 2. Nf3 {[%clk 0:03:02.6]} 2...
Nc6 {[%clk 0:03:01.7]} 3. Bb5 {[%clk 0:03:02.6]} 3... g6 {[%clk 0:03:02.5]} 4.
O-O {[%clk 0:03:03.3]} 4... Bg7 {[%clk 0:03:02.9]} 5. Re1 {[%clk 0:03:04.6]}
5... e5 {[%clk 0:03:03.9]} 6. Nc3 {[%clk 0:02:56.9]} 6... Nge7 {[%clk
0:03:01.6]} 7. a3 {[%clk 0:02:58]} 7... O-O {[%clk 0:02:57.3]} 8. d3 {[%clk
0:02:59.2]} 8... a6 {[%clk 0:02:57.3]} 9. Bc4 {[%clk 0:02:59.8]} 9... h6 {[%clk
0:02:55.5]} 10. Bd2 {[%clk 0:02:59.9]} 10... d6 {[%clk 0:02:55]} 11. h3 {[%clk
0:02:58.1]} 11... Kh7 {[%clk 0:02:55.1]} 12. Nd5 {[%clk 0:02:56.9]} 12... Nxd5
{[%clk 0:02:50.8]} 13. Bxd5 {[%clk 0:02:57.6]} 13... Ne7 {[%clk 0:02:51.8]} 14.
Ba2 {[%clk 0:02:57.6]} 14... f5 {[%clk 0:02:49.6]} 15. b4 {[%clk 0:02:48.3]}
15... b6 {[%clk 0:02:46.3]} 16. Rb1 {[%clk 0:02:47.5]} 16... f4 {[%clk
0:02:45.6]} 17. c3 {[%clk 0:02:41]} 17... g5 {[%clk 0:02:44]} 18. bxc5 {[%clk
0:02:36.3]} 18... bxc5 {[%clk 0:02:44.1]} 19. d4 {[%clk 0:02:37.2]} 19... g4
{[%clk 0:02:27.6]} 20. hxg4 {[%clk 0:02:37.5]} 20... Bxg4 {[%clk 0:02:29.5]} 21.
Ng5+ {[%clk 0:02:34.7]} 21... hxg5 {[%clk 0:02:26]} 22. Qxg4 {[%clk 0:02:36.6]}
22... Ng8 {[%clk 0:02:18.4]} 23. Rb7 {[%clk 0:02:22.8]} 23... Nh6 {[%clk
0:02:12]} 24. Qe6 {[%clk 0:02:06.6]} 24... Re8 {[%clk 0:01:35.4]} 25. Qd5 {[%clk
0:02:03.1]} 25... cxd4 {[%clk 0:01:26.1]} 26. cxd4 {[%clk 0:01:41.9]} 26... Qf6
{[%clk 0:01:26.9]} 27. Rc1 {[%clk 0:01:01.7]} 27... Rac8 {[%clk 0:01:22.6]} 28.
Rc6 {[%clk 0:00:57.2]} 28... Rxc6 {[%clk 0:01:05.3]} 29. Qxc6 {[%clk 0:00:58.3]}
29... Rd8 {[%clk 0:00:51.2]} 30. Ba5 {[%clk 0:00:55.9]} 30... Rh8 {[%clk
0:00:45.4]} 31. Rd7 {[%clk 0:00:50.1]} 31... g4 {[%clk 0:00:23.2]} 32. Qxd6
{[%clk 0:00:42]} 32... Qxd6 {[%clk 0:00:15]} 33. Rxd6 {[%clk 0:00:43.1]} 33...
exd4 {[%clk 0:00:16.1]} 34. Bb1 {[%clk 0:00:38.1]} 34... Rb8 {[%clk 0:00:15.4]}
35. Bb6 {[%clk 0:00:26.4]} 35... Nf7 {[%clk 0:00:12.7]} 36. Re6 {[%clk
0:00:21.1]} 36... Ne5 {[%clk 0:00:11.5]} 37. Ba2 {[%clk 0:00:16]} 37... d3
{[%clk 0:00:12.1]} 38. Bb3 {[%clk 0:00:12.4]} 38... f3 {[%clk 0:00:08.3]} 39.
gxf3 {[%clk 0:00:13.1]} 39... Nxf3+ {[%clk 0:00:08.6]} 40. Kg2 {[%clk 0:00:14]}
40... d2 {[%clk 0:00:08.5]} 41. Bd1 {[%clk 0:00:14.2]} 41... Nd4 {[%clk
0:00:06.7]} 42. Bxd4 {[%clk 0:00:13.3]} 42... Bxd4 {[%clk 0:00:08.6]} 43. Rd6
{[%clk 0:00:15]} 43... Bb2 {[%clk 0:00:06.5]} 44. Rxd2 {[%clk 0:00:14.7]} 44...
Bxa3 {[%clk 0:00:05.8]} 45. Bxg4 {[%clk 0:00:15.5]} 45... Rg8 {[%clk 0:00:04.1]}
46. Kf3 {[%clk 0:00:16.2]} 46... a5 {[%clk 0:00:04.8]} 47. Bf5+ {[%clk
0:00:17.4]} 47... Kg7 {[%clk 0:00:05]} 48. e5 {[%clk 0:00:16.3]} 48... Bb4
{[%clk 0:00:04.6]} 49. Rd7+ {[%clk 0:00:17.3]} 49... Kh6 {[%clk 0:00:05.5]} 50.
Kf4 {[%clk 0:00:16.9]} 50... Rg7 {[%clk 0:00:06.4]} 51. Rd8 {[%clk 0:00:16.9]}
51... Re7 {[%clk 0:00:06]} 52. Ke4 {[%clk 0:00:13.3]} 52... Kg7 {[%clk
0:00:05.3]} 53. Ra8 {[%clk 0:00:14]} 53... Bc3 {[%clk 0:00:04.1]} 54. f4 {[%clk
0:00:15.1]} 54... Rb7 {[%clk 0:00:04.8]} 55. Be6 {[%clk 0:00:10.2]} 55... Rb6
{[%clk 0:00:02.6]} 56. Kf5 {[%clk 0:00:09.1]} 56... Rb7 {[%clk 0:00:03.4]} 57.
Ra6 {[%clk 0:00:09]} 57... Re7 {[%clk 0:00:04.1]} 58. Bd5 {[%clk 0:00:08.3]}
58... Re8 {[%clk 0:00:04.1]} 59. Ra7+ {[%clk 0:00:08.6]} 59... Kh6 {[%clk
0:00:04.5]} 60. Ke4 {[%clk 0:00:07.3]} 60... Kg6 {[%clk 0:00:03.1]} 61. Bf7+
{[%clk 0:00:07.7]} 1-0